[Event "34th Pula Open 2022"]
[Site "Pula"]
[Date "2022.06.22"]
[Round "6.10"]
[White "Pastar, Slaven"]
[Black "Tonndorf, Matthias"]
[Result "1-0"]
[ECO "A06"]
[WhiteElo "2300"]
[BlackElo "2162"]
[Annotator "TA"]
[PlyCount "71"]
[EventDate "2022.06.18"]
[EventType "swiss"]
[EventCountry "CRO"]
[SourceTitle "playchess.com"]
[Source "ChessBase"]
[SourceQuality "1"]
[TimeControl "5400+30"]

{[%evp 11,71,6,18,0,6,0,61,11,16,30,29,16,30,12,174,166,171,167,156,152,170,106,102,36,37,20,40,44,68,59,81,81,112,127,175,146,268,253,330,331,521,521,1539,545,582,412,390,365,506,522,519,507,894,879,922,587,705,690,1123,1112,991,831]} 1. Nf3 {[%emt 0:00:03]} Nf6 {[%emt 0:00:22]} 2. b3 {[%emt 0:01:38]} d5 {[%emt 0:01:05]} 3. Bb2 {[%emt 0:00:48]} c5 {[%emt 0:00:59]} 4. e3 {[%emt 0:00:41]} Nc6 {[%emt 0:01:58]} 5. Bb5 {[%emt 0:00:40]} Bd7 {[%emt 0:00:24]} 6. O-O {[%emt 0:02:27]} e6 {[%emt 0:00:20]} 7. c4 {[%emt 0:00:33] A06: Réti Opening: 1 Nf3 d5.} dxc4 {[%emt 0:04:55]} 8. bxc4 {[%emt 0:00:45] [#]} Qb6 $146 {[%emt 0:04:03]} ({Black should play} 8... Bd6 $11) ({Predecessor:} 8... Be7 9. Nc3 O-O 10. Ne2 Na5 11. Qc2 Rc8 12. Bxd7 Nxd7 13. d3 a6 14. Ng3 Bf6 {1-0 (47) Nepomniachtchi,I (2784)-Nakamura,H (2736) Chess.com INT 2020}) 9. Nc3 {[%emt 0:10:29]} (9. Bxf6 $14 gxf6 10. Nc3) 9... a6 {[%emt 0:03:13] [#]} 10. Ba4 {[%emt 0:06:24]} Bd6 {[%emt 0:04:47]} (10... Qxb2 $2 11. Rb1 Qa3 12. Rb3 $18) (10... Be7 11. Rb1) 11. Rb1 {[%emt 0:01:47][%cal Oc3e4] Black must now prevent Ne4!} O-O {[%emt 0:01:36]} 12. Nd5 {[%emt 0:08:59]} Nxd5 {[%emt 0:03:40]} (12... exd5 $11 13. Bxf6 Qc7 14. cxd5 Nb4 15. Bxd7 Qxd7) 13. cxd5 $18 {[%emt 0:07:28]} exd5 {[%emt 0:00:33] [#]} 14. Bxg7 $1 {[%emt 0:06:11][%mdl 512]} Qc7 {[%emt 0:00:28]} 15. Bxf8 {[%emt 0:02:14]} Rxf8 {[%emt 0:00:14]} 16. d4 {[%emt 0:08:50]} (16. Nh4 $18) 16... c4 $16 {[%emt 0:00:30]} 17. Ng5 {[%emt 0:08:44]} (17. Nh4 $16) 17... f6 $1 $14 {[%emt 0:01:41]} 18. Nh3 {[%emt 0:02:41]} b5 {[%emt 0:02:59]} 19. Bc2 {[%emt 0:00:20]} Nb4 {[%emt 0:08:59] [#]} 20. Rxb4 $1 {[%emt 0:02:41]} Bxb4 {[%emt 0:00:33] This bishop pair is nice. White leaves nothing to chance now.} (20... Bxh3 21. Rb1) 21. Nf4 $1 {[%emt 0:01:26] aiming for Qb1.} Qd6 {[%emt 0:01:38]} (21... Bc6 $2 22. Ne6 Qd7 23. Nxf8 Bxf8 24. Qf3 $18) 22. Qh5 $40 {[%emt 0:04:08][%csl Gc2,LRd5,LRh7][%cal Rh5h7][%mdl 128] White goes for the king.} f5 {[%emt 0:00:28] [#]} (22... Rf7 $16) 23. g4 $1 $18 {[%emt 0:00:42][%cal Bg2g4,Bg4f5][%mdl 32]} Rf7 {[%emt 0:09:01]} (23... Be8 $16 24. Qg5+ Kh8) 24. gxf5 {[%emt 0:00:56]} (24. Bxf5 $6 Qc6 25. f3 Bf8 $18) 24... Ba5 {[%emt 0:01:25]} 25. Kh1 {[%emt 0:00:42] Hoping for Rg1+.} ({Not} 25. f6 Qxf6 26. Kh1 (26. Nxd5 $2 Qg7+ 27. Kh1 Bg4 $19) (26. Qxd5 $2 Bc6 $19) 26... Rg7 $16) 25... Kf8 {[%emt 0:04:12]} (25... Rg7 $142 26. Rg1 Rxg1+ 27. Kxg1 Qf6 28. Nxd5 Qf7) 26. Rg1 {[%emt 0:00:40]} b4 {[%emt 0:02:21] [#]} 27. Qg5 {[%emt 0:02:24]} (27. Ng6+ $142 $1 {[%mdl 512]} hxg6 28. fxg6) 27... Ke8 {[%emt 0:02:17]} 28. Qg8+ {[%emt 0:07:21]} Qf8 {[%emt 0:01:52]} 29. Nxd5 {[%emt 0:00:29] Qg3 is the strong threat.} Bc6 {[%emt 0:00:27]} 30. Qg2 {[%emt 0:01:37] White is clearly winning.} Qd6 {[%emt 0:02:09]} 31. Be4 {[%emt 0:00:30]} b3 {[%emt 0:00:38]} (31... Kd8 $142 32. Nf4 Kc7 33. Ne6+ Kb6 34. Bxc6 Qxc6) 32. axb3 {[%emt 0:00:13]} cxb3 {[%emt 0:00:09]} 33. Rb1 {[%emt 0:02:03]} Kf8 {[%emt 0:03:37] And now ...Rg7 would win.} 34. Nf4 {[%emt 0:03:15][%cal Bd5f4,Bf4e6,Be6c5][%mdl 32]} ({Don't go for} 34. Rxb3 $2 Rg7 35. Qf3 Bxd5 $19) 34... Ba4 {[%emt 0:01:51]} 35. Ne6+ {[%emt 0:01:11]} Ke7 {[%emt 0:00:20]} 36. Nc5 {[%emt 0:01:29] Weighted Error Value: White=0.40/Black=0.51} 1-0

[Event "34th Pula Open 2022"]
[Site "Pula"]
[Date "2022.06.22"]
[Round "6.11"]
[White "Babic, Drasko"]
[Black "Maier, Christian"]
[Result "1-0"]
[ECO "C77"]
[WhiteElo "2205"]
[BlackElo "2299"]
[Annotator "TA"]
[PlyCount "83"]
[EventDate "2022.06.18"]
[EventType "swiss"]
[EventCountry "CRO"]
[SourceTitle "playchess.com"]
[Source "ChessBase"]
[SourceQuality "1"]
[TimeControl "5400+30"]

{[%evp 13,83,0,2,-11,-5,-13,-10,-17,-17,-7,-21,-44,54,55,62,34,33,27,29,19,34,26,68,75,71,72,108,88,113,76,100,103,115,103,121,70,73,70,134,134,130,139,141,150,138,107,145,134,127,118,251,235,256,260,265,260,258,250,290,296,276,282,292,236,438,432,412,374,621,499,631,646]} 1. Nf3 {[%emt 0:00:02]} Nc6 {[%emt 0:04:11]} 2. e4 {[%emt 0:01:16]} e5 {[%emt 0:00:06]} 3. Bb5 {[%emt 0:00:31]} a6 {[%emt 0:00:07]} 4. Ba4 {[%emt 0:00:06]} Nf6 {[%emt 0:00:08]} 5. Bxc6 {[%emt 0:00:22]} dxc6 {[%emt 0:00:28]} 6. d3 {[%emt 0:00:12][%cal Bd2d3,Bd3d4,Bd4d5][%mdl 32]} Bd6 {[%emt 0:00:30] 6...Bd6 is better than 6...Nd7.} 7. Nbd2 {[%emt 0:00:17]} Bg4 {[%emt 0:02:05]} 8. b3 {[%emt 0:00:21] C77: Ruy Lopez: 3...a6 4 Ba4 Nf6, unusual lines.} Qe7 {[%emt 0:00:24]} 9. Bb2 {[%emt 0:00:12]} Nd7 {[%emt 0:00:48]} 10. h3 {[%emt 0:00:40] The position is equal.} Be6 {[%emt 0:00:32] [#]} 11. d4 $146 {[%emt 0:02:35]} ({Predecessor:} 11. Qe2 f6 12. O-O g5 13. d4 h5 14. Nc4 g4 15. Nh4 Rg8 16. Nf5 Bxf5 17. exf5 exd4 {½-½ (39) Campora,D-De la Vega,H (2370) Buenos Aires 1976}) 11... f6 {[%emt 0:00:41]} 12. c4 {[%emt 0:00:43]} c5 {[%emt 0:01:28]} (12... exd4 $15 13. Nxd4 O-O-O) 13. d5 $14 {[%emt 0:02:57]} Bf7 {[%emt 0:00:08]} 14. Nh4 {[%emt 0:02:25]} g6 {[%emt 0:00:09]} 15. g3 {[%emt 0:02:11]} O-O-O {[%emt 0:00:16]} 16. Nf1 {[%emt 0:00:10]} Rhe8 {[%emt 0:02:15][%cal Of6f5]} 17. Ne3 {[%emt 0:00:33]} f5 {[%emt 0:02:59]} 18. exf5 {[%emt 0:00:28]} e4 {[%emt 0:00:05]} 19. fxg6 {[%emt 0:01:23]} hxg6 {[%emt 0:00:31]} 20. Qg4 {[%emt 0:03:43]} Rg8 {[%emt 0:03:04]} 21. O-O-O {[%emt 0:01:47]} Be5 {[%emt 0:00:39]} 22. Bxe5 {[%emt 0:01:28]} Qxe5 {[%emt 0:00:07]} 23. Kb1 {[%emt 0:00:06] Active counter play!} Kb8 {[%emt 0:00:03]} 24. Rhe1 {[%emt 0:02:59]} (24. Nhg2 $16) 24... Nf6 {[%emt 0:00:16]} 25. Qe2 {[%emt 0:00:24]} Rh8 {[%emt 0:02:19]} ({Black should play} 25... g5 $14 26. Nhg2 Bh5) 26. Ng4 $16 {[%emt 0:02:45]} Qd6 {[%emt 0:04:27]} 27. Qb2 {[%emt 0:06:12]} Nxg4 {[%emt 0:02:06]} 28. hxg4 {[%emt 0:00:07]} Rhe8 {[%emt 0:00:12]} 29. Qd2 {[%emt 0:01:38]} Re5 {[%emt 0:01:04]} 30. Re2 {[%emt 0:12:07]} Rde8 {[%emt 0:00:28]} 31. Rde1 {[%emt 0:00:28]} c6 {[%emt 0:08:43] A mistake that costs the game.} (31... g5 $16) 32. dxc6 $18 {[%emt 0:01:15]} (32. Qf4 g5 33. Qxf7 gxh4 $18) 32... Qxc6 {[%emt 0:00:08] [#]} 33. Nf3 $1 {[%emt 0:08:40][%mdl 512]} R5e7 {[%emt 0:03:38]} 34. Ng5 {[%emt 0:02:51]} Ka7 {[%emt 0:00:25]} 35. Qf4 {[%emt 0:00:54][%csl LRe4,LRf7]} Bg8 {[%emt 0:04:37]} 36. Rxe4 {[%emt 0:03:58]} (36. Nxe4 g5 37. Qxg5 (37. Qf5 $2 Re5 $19) 37... Rxe4 38. Rxe4 Rxe4 39. Rxe4 Qxe4+ 40. Kb2 Qd4+ 41. Kc1 Be6 $19) 36... Rxe4 {[%emt 0:00:07]} 37. Rxe4 {[%emt 0:01:19]} ({Much less strong is} 37. Nxe4 $6 g5 38. Qf5 Be6 39. Qxg5 (39. Qxc5+ Qxc5 40. Nxc5 Bf5+ 41. Kb2 Rxe1 $11) 39... Bxc4 $16) 37... Rd8 {[%emt 0:00:05]} 38. Qe3 {[%emt 0:04:06]} a5 $2 {[%emt 0:00:07]} (38... Qd6 {was worth a try.} 39. Nf3 b5 40. Re7+ Kb6) 39. Re5 {[%emt 0:01:00]} b6 {[%emt 0:03:16]} 40. Ne4 {[%emt 0:02:07]} g5 $2 {[%emt 0:00:12]} (40... Be6 41. f3 Bc8 42. Nxc5 Qd6) 41. Nc3 {[%emt 0:00:20]} Bh7+ {[%emt 0:00:08]} 42. Kb2 {[%emt 0:00:22] Weighted Error Value: White=0.12 (very precise) /Black=0.35} 1-0

[Event "34th Pula Open 2022"]
[Site "Pula"]
[Date "2022.06.22"]
[Round "6.12"]
[White "Cupic, Lovro"]
[Black "Compel, Daniel"]
[Result "1-0"]
[ECO "B50"]
[WhiteElo "2271"]
[BlackElo "2106"]
[Annotator "TA"]
[PlyCount "117"]
[EventDate "2022.06.18"]
[EventType "swiss"]
[EventCountry "CRO"]
[SourceTitle "playchess.com"]
[Source "ChessBase"]
[SourceQuality "1"]
[TimeControl "5400+30"]

{[%evp 9,117,0,8,10,0,-23,-18,-23,-23,-33,-37,-52,-28,-34,-5,-13,-14,-22,0,0,8,13,16,14,15,9,23,17,50,45,64,61,70,39,63,38,44,37,72,33,79,85,89,91,87,81,125,40,27,26,31,22,34,17,54,41,235,250,239,204,200,212,433,411,1467,1314,1388,1565,1655,1655,1655,1616,1470,1470,1425,1423,5595,5583,2168,1733,29957,29951,11525,7525,29959,29957,29941,12748,8850,5967,29966,29967,29967,29968,29967,29968,29970,29971,29970,29970,29973,29974,29975,29974,29974,29974,29973,29974,29976,12839]} 1. e4 {[%emt 0:00:01]} c5 {[%emt 0:00:07]} 2. Nf3 {[%emt 0:00:03]} d6 {[%emt 0:00:03]} 3. Nc3 {[%emt 0:00:03]} Nf6 {[%emt 0:00:06]} 4. e5 {[%emt 0:00:05]} dxe5 {[%emt 0:00:33]} 5. Nxe5 {[%emt 0:00:05]} a6 {[%emt 0:00:59]} 6. g3 {[%emt 0:00:04] B50: Sicilian: 2...d6, Miscellaneous.} Qd6 {[%emt 0:00:56] [#] is recently more successful than 6...Qc7.} 7. f4 $146 {[%emt 0:00:33]} ({Predecessor:} 7. Nf3 Nc6 8. Bg2 Bf5 9. O-O e6 10. d3 Be7 11. Re1 O-O 12. Bf4 Qd7 13. Ne5 Nxe5 14. Bxe5 {½-½ (53) Artemiev,V (2700)-Sarana,A (2666) Kazan 2022}) 7... Nc6 {[%emt 0:00:38]} 8. Nc4 {[%emt 0:00:36] The position is equal.} Qc7 {[%emt 0:00:36]} 9. Ne3 {[%emt 0:01:07]} e6 {[%emt 0:01:06]} 10. Bg2 {[%emt 0:00:13]} Be7 {[%emt 0:00:11]} 11. b3 {[%emt 0:02:13]} b6 {[%emt 0:01:06]} 12. Bb2 {[%emt 0:01:04]} Bb7 {[%emt 0:00:09]} 13. Qf3 {[%emt 0:03:04]} Na5 {[%emt 0:02:33]} 14. Qe2 {[%emt 0:00:21]} Bxg2 {[%emt 0:00:16]} 15. Qxg2 {[%emt 0:00:30]} Qc6 {[%emt 0:00:35]} 16. O-O {[%emt 0:00:34]} Qxg2+ {[%emt 0:00:07]} 17. Kxg2 {[%emt 0:00:05]} O-O-O {[%emt 0:04:47]} 18. d3 {[%emt 0:00:19]} Rhe8 {[%emt 0:02:13]} 19. Nc4 {[%emt 0:04:28]} Nxc4 {[%emt 0:00:22]} 20. bxc4 {[%emt 0:00:06]} g6 {[%emt 0:12:44]} 21. Rab1 {[%emt 0:02:43]} Kc7 {[%emt 0:03:17]} 22. h3 {[%emt 0:05:25]} Kc6 {[%emt 0:05:52]} 23. a4 {[%emt 0:02:42]} a5 {[%emt 0:01:05]} 24. Ne2 {[%emt 0:01:02][%cal Bc3e2,Be2g1,Bg1f3][%mdl 32]} Ng8 {[%emt 0:04:13]} (24... Nd7 $14 {was preferrable.}) 25. Ng1 {[%emt 0:01:16]} Bf6 {[%emt 0:02:49]} 26. Be5 {[%emt 0:02:35]} Rf8 {[%emt 0:06:47]} 27. Nf3 {[%emt 0:00:52]} h6 {[%emt 0:00:53] Against Ng5} 28. g4 {[%emt 0:06:12] White is much more active.} (28. Rb5 $16 {Strongly threatening Rfb1.} Bxe5 29. Nxe5+ Kc7 30. Rfb1) 28... Bxe5 $1 $14 {[%emt 0:01:29]} 29. fxe5 {[%emt 0:01:42]} Ne7 {[%emt 0:02:56]} 30. Kg3 {[%emt 0:02:50]} g5 {[%emt 0:02:46]} 31. h4 {[%emt 0:00:27]} gxh4+ {[%emt 0:09:05]} 32. Nxh4 {[%emt 0:00:06]} Ng6 $2 {[%emt 0:00:36] Prevents Rf4. This costs Black the game.} (32... Rd7 $14) 33. Nxg6 $18 {[%emt 0:00:31]} fxg6 {[%emt 0:00:08]} 34. Rf6 {[%emt 0:00:16]} Rxf6 {[%emt 0:00:15]} 35. exf6 {[%emt 0:00:05][%cal Be5f6,Bf6f7][%mdl 4128] Endgame KR-KR} Rf8 $2 {[%emt 0:01:25] [#]} (35... g5 36. Rh1 Kd6 37. Rxh6 Ke5) 36. g5 $1 {[%emt 0:00:03]} hxg5 {[%emt 0:11:03]} (36... h5 $142 37. Kf4 e5+ 38. Ke4 (38. Kxe5 Re8+ 39. Kf4 Re2 $18) 38... h4 39. Kxe5 Re8+ 40. Kf4 Rh8) 37. Rf1 {[%emt 0:00:05]} Kd7 {[%emt 0:02:42]} 38. Kg4 {[%emt 0:00:39]} Ke8 {[%emt 0:03:00]} 39. Kxg5 {[%emt 0:00:31]} Rh8 {[%emt 0:00:27] [#]} 40. f7+ $1 {[%emt 0:06:31]} Kf8 {[%emt 0:00:46]} 41. Kxg6 {[%emt 0:00:14]} Rh2 {[%emt 0:00:13]} 42. Kf6 {[%emt 0:03:16]} Rxc2 {[%emt 0:01:21]} 43. Kxe6 {[%emt 0:00:18] White threatens Kd5 and mate.} Rd2 {[%emt 0:00:17]} 44. Rf3 {[%emt 0:00:43] Kd7 would kill now.} Rd1 {[%emt 0:01:23]} 45. Kd5 {[%emt 0:03:12]} Ra1 {[%emt 0:00:08]} 46. Kc6 {[%emt 0:00:32]} Rb1 {[%emt 0:00:14]} 47. Kb7 {[%emt 0:01:25]} Rb4 {[%emt 0:00:12]} 48. Rf6 {[%emt 0:00:21] Intending Ka7 and mate.} Rb3 {[%emt 0:00:52]} 49. Ka6 {[%emt 0:01:21]} Rb4 {[%emt 0:01:29]} 50. Rxb6 {[%emt 0:03:46] White mates.} Rxa4 {[%emt 0:00:04]} 51. Kb5 {[%emt 0:03:06][%csl LRa4,LRc5]} Ra3 {[%emt 0:00:33]} 52. Rd6 {[%emt 0:02:10]} Kxf7 {[%emt 0:00:13]} 53. Kxc5 {[%emt 0:00:08]} Rb3 {[%emt 0:00:04]} 54. d4 {[%emt 0:00:40]} a4 {[%emt 0:00:04]} 55. Ra6 {[%emt 0:00:10]} a3 {[%emt 0:00:05]} 56. Kd6 {[%emt 0:02:38]} Rb4 {[%emt 0:00:37]} 57. Kd5 {[%emt 0:00:01]} Rb3 {[%emt 0:00:00]} 58. c5 {[%emt 0:00:30]} Ke8 {[%emt 0:00:14]} 59. Kc6 {[%emt 0:01:35] Weighted Error Value: White=0.06 (flawless) /Black=0.57} (59. Kd6 $142 Rb8 60. Rxa3 Rd8+ 61. Ke6 Kf8 62. d5 Kg7 63. c6 Re8+ 64. Kd7) 1-0

[Event "34th Pula Open 2022"]
[Site "Pula"]
[Date "2022.06.23"]
[Round "7.1"]
[White "Nikcevic, Nebojsa"]
[Black "De Vleeschauwer, Maarten"]
[Result "1-0"]
[ECO "D47"]
[WhiteElo "2387"]
[BlackElo "2255"]
[Annotator "TA"]
[PlyCount "61"]
[EventDate "2022.06.18"]
[EventType "swiss"]
[EventCountry "CRO"]
[SourceTitle "playchess.com"]
[Source "ChessBase"]
[SourceQuality "1"]
[TimeControl "5400+30"]

{[%evp 31,61,0,0,-25,0,-87,-83,-79,-83,-100,-123,-106,-102,-110,110,91,103,-316,790,789,1188,1182,1175,1170,1106,898,5389,5371,29985,1485,29985,1433]} 1. c4 {[%emt 0:01:20]} c6 {[%emt 0:00:17]} 2. Nf3 {[%emt 0:02:08]} d5 {[%emt 0:00:25]} 3. e3 {[%emt 0:00:05]} Nf6 {[%emt 0:00:18]} 4. Nc3 {[%emt 0:00:06]} e6 {[%emt 0:00:42]} 5. d4 {[%emt 0:00:12]} Nbd7 {[%emt 0:00:19]} 6. Bd3 {[%emt 0:00:54]} dxc4 {[%emt 0:00:35]} 7. Bxc4 {[%emt 0:00:06]} b5 {[%emt 0:00:11]} 8. Bd3 {[%emt 0:00:06]} Bb7 {[%emt 0:00:44]} 9. e4 {[%emt 0:01:34]} b4 {[%emt 0:01:17]} 10. Na4 {[%emt 0:00:05]} c5 {[%emt 0:00:18]} 11. e5 {[%emt 0:00:06]} Nd5 {[%emt 0:00:13]} 12. O-O {[%emt 0:00:28]} cxd4 {[%emt 0:02:16]} 13. Nxd4 {[%emt 0:06:00]} Nxe5 {[%emt 0:01:59]} 14. Bb5+ {[%emt 0:15:16]} Nd7 {[%emt 0:00:14]} 15. Re1 {[%emt 0:15:56]} Rc8 {[%emt 0:06:50]} 16. Qh5 {[%emt 0:07:02]} g6 {[%emt 0:06:33]} 17. Qh3 {[%emt 0:09:00][%cal Od4e6] Strongly threatening Nxe6! D47: Semi-Slav: Meran System.} a6 {[%emt 0:06:41]} 18. Bg5 {[%emt 0:20:43]} Be7 $1 $17 {[%emt 0:42:10]} (18... Qxg5 $2 19. Nxe6 $1 fxe6 20. Qxe6+ Be7 21. Bxd7+ (21. Qxd7+ Kf7 $11) 21... Kf8 22. Bxc8 $18) 19. Bxe7 {[%emt 0:00:29] Black is better.} Nxe7 {[%emt 0:01:55]} ({Much worse is} 19... Qxe7 20. Nxe6 fxe6 21. Rxe6 axb5 22. Rxe7+ Kxe7 23. Re1+ Kd8 24. Qh4+ Kc7 25. Qg3+ Kd8 26. Qh4+ Kc7 27. Qg3+ Kd8 28. Qh4+ $11) 20. Nxe6 {[%emt 0:00:10]} fxe6 {[%emt 0:00:20]} 21. Bxd7+ {[%emt 0:01:09][%mdl 64] Remove Defender} Qxd7 {[%emt 0:01:13]} 22. Nb6 {[%emt 0:00:00] [#]} Qc6 {[%emt 0:17:52]} (22... Qd6 $1 $17 {stays on course.} 23. Nxc8 (23. Rxe6 Qd8 $17) 23... Bxc8) 23. Rxe6 $16 {[%emt 0:09:04] [#] White is more active.} Qc5 $146 {[%emt 0:00:44][%cal Oe8g8] And now ...0-0! would win.} (23... Qc1+ $2 24. Re1 Qc7 25. Nxc8 Qxc8 26. Qg3 $18) ({Predecessor:} 23... Qc1+ 24. Re1 Qc6 25. Nxc8 Bxc8 26. Qh4 Qb7 27. Rac1 Bf5 28. Qf6 Rf8 29. Qe5 {1-0 (29) Almasi,I (2440)-Schlegl,O (2130) Balatonlelle 2006}) 24. Qh4 $2 {[%emt 0:04:06][%mdl 8192]} ({Don't play} 24. Nxc8 $6 Bxc8 25. Qe3 Qxe3 26. Rxe3 Kf7 $11) (24. Rxe7+ $1 $16 {is forced if you want to stay better.} Qxe7 25. Nxc8) 24... Rc6 $4 {[%emt 0:01:55][%mdl 8192]} (24... Qc1+ $2 25. Re1 Qxe1+ 26. Rxe1 $18) (24... Rc7 $19 25. Qf4 Rf8) 25. Na4 $18 {[%emt 0:00:20]} Qxf2+ {[%emt 0:05:50]} 26. Qxf2 {[%emt 0:01:02][%cal Oe6e7] Rxe7+! would kill now.} Rxe6 {[%emt 0:00:02]} 27. Nc5 {[%emt 0:00:24][%csl LRb7,LRe6]} Rf8 {[%emt 0:01:33]} 28. Qg3 {[%emt 0:01:21]} Rb6 {[%emt 0:00:32]} 29. Qc7 {[%emt 0:00:14] White wants to mate with Re1.} Rc6 {[%emt 0:00:15]} 30. Qd7+ {[%emt 0:00:25]} Kf7 {[%emt 0:00:05]} 31. Nxb7 {[%emt 0:00:32] Weighted Error Value: White=0.94/Black=1.23} (31. Re1 $142 Re8 32. Rf1+ Kg7 33. Qxe8 Nf5 34. Nxb7 Rc5 35. Nxc5 b3 36. Qe5+ Kf7 37. Nd7) 1-0

[Event "34th Pula Open 2022"]
[Site "Pula"]
[Date "2022.06.23"]
[Round "7.2"]
[White "Fercec, Nenad"]
[Black "Maki-Uuro, Miikka"]
[Result "0-1"]
[ECO "C10"]
[WhiteElo "2415"]
[BlackElo "2332"]
[Annotator "TA"]
[PlyCount "56"]
[EventDate "2022.06.18"]
[EventType "swiss"]
[EventCountry "CRO"]
[SourceTitle "playchess.com"]
[Source "ChessBase"]
[SourceQuality "1"]
[TimeControl "5400+30"]

{[%evp 12,56,43,24,23,26,28,35,34,39,47,-8,0,-18,-15,-35,0,-144,-154,-165,-150,-216,-236,-185,-163,-168,-173,-165,-95,-203,-200,-236,-241,-240,-247,-247,-231,-257,-260,-226,-202,-299,-292,-1203,-1191,-1413,-1368]} 1. e4 {[%emt 0:00:08]} e6 {[%emt 0:00:14]} 2. d4 {[%emt 0:00:30]} d5 {[%emt 0:00:30]} 3. Nd2 {[%emt 0:00:30]} dxe4 {[%emt 0:00:00]} 4. Nxe4 {[%emt 0:00:00]} Nd7 {[%emt 0:00:01]} 5. Nf3 {[%emt 0:01:01]} Ngf6 {[%emt 0:00:26]} 6. Nxf6+ {[%emt 0:00:26]} Nxf6 {[%emt 0:00:34]} 7. Be3 {[%emt 0:00:20] 7.c3 is a critical line.} Bd6 {[%emt 0:00:48] C10: French with 3 Nc3: Unusual Black 3rd moves and 3...dxe4.} 8. Bd3 {[%emt 0:01:02]} O-O {[%emt 0:00:30]} 9. Qe2 {[%emt 0:00:45]} b6 {[%emt 0:01:42] White is slightly better.} 10. O-O-O {[%emt 0:03:45]} Bb7 {[%emt 0:00:32] [#]} 11. Ng5 $146 {[%emt 0:17:29]} ({White should play} 11. Rhe1 $14) ({Predecessor:} 11. Rhe1 Nd5 12. Kb1 Nxe3 13. fxe3 Qe7 14. e4 e5 15. Bc4 Rae8 16. d5 Bc8 17. Nd2 {0-1 (46) Pichot,A (2630)-Meier,G (2631) Dubai 2021}) 11... h6 {[%emt 0:34:01]} (11... Bxg2 $2 12. Rhg1 $18) 12. h4 {[%emt 0:02:02][%cal Oc1b1]} Re8 {[%emt 0:01:26]} (12... hxg5 $2 13. hxg5 g6 14. gxf6 Qxf6 15. Qg4 $18) (12... Bxg2 13. Rhg1 Bd5 14. Nh7 $16) 13. c3 {[%emt 0:25:08]} a6 {[%emt 0:27:42]} (13... hxg5 14. hxg5 Nd5 15. Qg4 (15. Qh5 Kf8 $17)) 14. Qc2 {[%emt 0:03:14]} hxg5 $17 {[%emt 0:04:09]} 15. hxg5 {[%emt 0:00:51]} Nd5 {[%emt 0:00:22]} ({And not} 15... Bxg2 16. gxf6 Qxf6 17. Bh7+ Kf8 18. Be4 Bxe4 19. Qxe4 $11) 16. Bd2 {[%emt 0:01:06]} (16. Qe2 $17 {keeps fighting.}) 16... Bf4 {[%emt 0:02:42]} 17. Rh5 {[%emt 0:00:54]} Bxd2+ {[%emt 0:01:31]} 18. Qxd2 {[%emt 0:00:30]} g6 {[%emt 0:01:18]} 19. Rh6 {[%emt 0:00:20] [#]} Qd6 $1 {[%emt 0:06:03]} 20. g3 {[%emt 0:02:59] Inhibits Nf4.} (20. Be4 $17) 20... Kg7 $19 {[%emt 0:01:05]} 21. Be4 {[%emt 0:02:36] [#]} Nxc3 {[%emt 0:07:54][%cal Bd5c3,Bc3d1,Bd1b2,Bb2c4][%mdl 544]} 22. Bxb7 {[%emt 0:00:32]} Nxd1 {[%emt 0:00:06]} 23. Bxa8 {[%emt 0:00:15] [#] Hoping for Bb7.} Nxb2 $1 {[%emt 0:01:21] Active counter play!} 24. Bb7 {[%emt 0:01:50]} Nc4 {[%emt 0:00:29] Chess con chili.} 25. Qc3 {[%emt 0:00:24]} b5 {[%emt 0:00:15]} 26. d5+ {[%emt 0:00:27]} (26. Rh4 $142) 26... e5 {[%emt 0:00:30]} 27. Qf3 $2 (27. Kd1) 27... Qe7 {[%emt 0:01:14]} 28. Kd1 {[%emt 0:00:51]} Qxg5 {[%emt 0:00:36] Weighted Error Value: White=0.77/Black=0.03 (flawless)} 0-1

[Event "34th Pula Open 2022"]
[Site "Pula"]
[Date "2022.06.23"]
[Round "7.3"]
[White "Popovic, Milan S"]
[Black "Stankovic, Boris"]
[Result "1/2-1/2"]
[ECO "B30"]
[WhiteElo "2383"]
[BlackElo "2287"]
[Annotator "TA"]
[PlyCount "27"]
[EventDate "2022.06.18"]
[EventType "swiss"]
[EventCountry "CRO"]
[SourceTitle "playchess.com"]
[Source "ChessBase"]
[SourceQuality "1"]
[TimeControl "5400+30"]

{[%evp 10,27,8,12,22,11,10,-43,23,25,32,0,0,-7,10,0,20,-5,0,-6]} 1. e4 {[%emt 0:00:02]} c5 {[%emt 0:00:12]} 2. Nf3 {[%emt 0:00:01]} Nc6 {[%emt 0:00:06]} 3. Bb5 {[%emt 0:00:04]} e6 {[%emt 0:00:32]} 4. Bxc6 {[%emt 0:00:06]} bxc6 {[%emt 0:00:05]} 5. d3 {[%emt 0:00:03]} Ne7 {[%emt 0:00:33]} 6. Qe2 {[%emt 0:00:41]} d6 $1 {[%emt 0:00:26][%mdl 4] now scores much better than the old 6...Ng6. B30: Sicilian: 2...Nc6 3 Bb5, lines without ...g6.} 7. e5 {[%emt 0:10:06]} Nf5 {[%emt 0:00:18]} 8. Na3 {[%emt 0:03:17] [#]} ({White should try} 8. O-O $11) 8... f6 $146 {[%emt 0:11:43]} (8... d5 $15) ({Predecessor:} 8... Nd4 9. Nxd4 cxd4 10. exd6 Bxd6 11. Nc4 O-O 12. O-O Ba6 13. Nxd6 Qxd6 14. Qg4 e5 {1-0 (31) Nezad,H (2373)-Whatley,S (1855) Caleta 2014}) 9. exd6 $11 {[%emt 0:01:11]} Bxd6 {[%emt 0:01:21]} 10. c3 {[%emt 0:02:28]} O-O {[%emt 0:01:39] The position is equal.} 11. O-O {[%emt 0:02:12]} Re8 {[%emt 0:00:10]} 12. Nc4 {[%emt 0:04:39]} Bf8 {[%emt 0:05:05]} 13. Rd1 {[%emt 0:06:12]} e5 {[%emt 0:02:19]} 14. Nfd2 {[%emt 0:00:36] An uneventful encounter.  Weighted Error Value: White=0.20 (precise) /Black=0.22 (precise)} 1/2-1/2